bitfinex-derivatives/quotes_BTCF0:USTF0_20250630
["timestamp","ask_amount","ask_price","bid_price","bid_amount"]
[1751274209670,1.2502488,107570.0,107560.0,0.09295011]
[1751274209876,0.2858974,107560.0,107550.0,0.05576404]
[1751274210075,1.74549778,107560.0,107550.0,0.05576404]
[1751274211478,0.1859146,107550.0,107540.0,0.54005959]
[1751274211779,0.1859146,107550.0,107540.0,0.33465524]
[1751274211780,0.3517146,107550.0,107540.0,0.33465524]
[1751274211975,0.3517146,107550.0,107540.0,0.34918888]
[1751274212679,0.3517146,107550.0,107540.0,0.33465524]
[1751274212877,0.8517146,107550.0,107540.0,0.33465524]
[1751274213580,0.8517146,107550.0,107540.0,0.2788912]
[1751274215179,0.8527146,107550.0,107540.0,0.2848912]
[1751274218582,1.2135146,107550.0,107540.0,0.2848912]
[1751274221180,1.2135146,107550.0,107540.0,0.1919318]
[1751274221387,1.54963154,107550.0,107540.0,0.006]
[1751274231397,1.65741288,107550.0,107540.0,0.006]
[1751274231592,0.1859318,107540.0,107530.0,0.03352993]
[1751274231896,1.5272184,107540.0,107530.0,0.01492934]
[1751274232295,1.32170146,107540.0,107530.0,0.01492934]
[1751274233197,1.82270146,107540.0,107530.0,0.02292934]
[1751274233899,2.02826186,107540.0,107530.0,0.22848974]
[1751274234500,2.02826186,107540.0,107530.0,0.00892993]
[1751274234698,2.02826186,107540.0,107530.0,0.21449033]
[1751274235089,2.02826186,107540.0,107530.0,0.00892993]
[1751274235398,2.02826186,107540.0,107530.0,0.22850616]
[1751274237600,2.02826186,107540.0,107530.0,0.41445526]
[1751274239899,2.02826186,107540.0,107530.0,0.20889486]
[1751274240099,2.02826186,107540.0,107530.0,0.41445526]
[1751274240502,2.02826186,107540.0,107530.0,0.20889486]
[1751274240702,2.02826186,107540.0,107530.0,0.41445526]
[1751274241800,1.66746186,107540.0,107530.0,0.41445526]
[1751274241995,1.66746186,107540.0,107530.0,0.44585526]
[1751274242191,1.66746186,107540.0,107530.0,0.47745526]
[1751274242503,1.66746186,107540.0,107530.0,0.27189486]
[1751274242804,1.66746186,107540.0,107530.0,0.47745526]
[1751274243101,1.66746186,107540.0,107530.0,0.46343943]
[1751274243304,1.46190146,107540.0,107530.0,0.46343943]
[1751274243503,1.66746186,107540.0,107530.0,0.49663943]
[1751274244405,1.66746186,107540.0,107530.0,0.53376489]
[1751274244595,1.10246186,107540.0,107530.0,0.53376489]
[1751274244797,1.79826186,107540.0,107530.0,0.53376489]
[1751274245306,1.79826186,107540.0,107530.0,0.49663943]
[1751274246307,1.79826186,107540.0,107530.0,0.53376489]
[1751274246501,1.79826186,107540.0,107530.0,0.49663943]
[1751274247405,1.79826186,107540.0,107530.0,0.53376489]
[1751274248803,1.79826186,107540.0,107530.0,0.32820449]
[1751274249004,1.79826186,107540.0,107530.0,0.50056489]
[1751274249503,2.15906186,107540.0,107530.0,0.47750373]
[1751274250412,2.15906186,107540.0,107530.0,0.51462919]
[1751274250600,2.15906186,107540.0,107530.0,0.29708009]
[1751274251411,2.15906186,107540.0,107530.0,0.48302919]
[1751274253213,1.95350146,107540.0,107530.0,0.29708009]
[1751274253404,2.15906186,107540.0,107530.0,0.48302919]
[1751274256808,2.15906186,107540.0,107530.0,0.51302919]
[1751274258314,2.15906186,107540.0,107530.0,0.47590373]
[1751274260515,2.15906186,107540.0,107530.0,0.51302919]
[1751274260811,2.15906186,107540.0,107530.0,0.47590373]
[1751274261015,2.15906186,107540.0,107530.0,0.51302919]
[1751274261216,2.15906186,107540.0,107530.0,0.54362919]
[1751274261417,2.15906186,107540.0,107530.0,0.54360833]
[1751274263821,2.15906186,107540.0,107530.0,0.50648287]
[1751274264921,2.15906186,107540.0,107530.0,0.54360833]
[1751274266426,2.15906186,107540.0,107530.0,0.52956489]
[1751274267124,1.79826186,107540.0,107530.0,0.52956489]
[1751274267325,2.15906186,107540.0,107530.0,0.52956489]
[1751274270026,1.86048146,107540.0,107530.0,0.52956489]
[1751274270226,2.06604186,107540.0,107530.0,0.52956489]
[1751274271822,2.09634186,107540.0,107530.0,0.52956489]
[1751274273333,2.15894186,107540.0,107530.0,0.52956489]
[1751274275534,2.15894186,107540.0,107530.0,0.32400449]
[1751274275735,2.15894186,107540.0,107530.0,0.52956489]
[1751274282142,2.02834186,107540.0,107530.0,0.52956489]
[1751274282538,2.02834186,107540.0,107530.0,0.54360912]
[1751274282928,1.82278146,107540.0,107530.0,0.54360912]
[1751274283130,2.02834186,107540.0,107530.0,0.54360912]
[1751274284043,2.02834186,107540.0,107530.0,0.52956489]
[1751274286044,1.66754186,107540.0,107530.0,0.52956489]
[1751274286245,2.02834186,107540.0,107530.0,0.52956489]
[1751274288044,1.46326186,107540.0,107530.0,0.52956489]
[1751274289844,1.46326186,107540.0,107530.0,0.32400449]
[1751274290044,1.46326186,107540.0,107530.0,0.52956489]
[1751274290343,1.46326186,107540.0,107530.0,0.49896489]
[1751274294049,1.46326186,107540.0,107530.0,0.51301027]
[1751274296449,1.46326186,107540.0,107530.0,0.48301027]
[1751274296849,2.96326186,107540.0,107530.0,0.48301027]
[1751274302051,2.75770146,107540.0,107530.0,0.48301027]
[1751274302351,2.20400146,107540.0,107530.0,0.54521027]
[1751274302553,2.20400146,107540.0,107530.0,0.53116489]
[1751274304249,2.20400146,107540.0,107530.0,1.09612489]
[1751274305247,2.20400146,107540.0,107530.0,0.89056449]
[1751274305552,2.20400146,107540.0,107530.0,1.09612489]
[1751274305749,2.20400146,107540.0,107530.0,1.66248529]
[1751274305950,0.70400146,107540.0,107530.0,1.71824933]
[1751274306151,0.51806966,107540.0,107530.0,1.71824933]
[1751274306353,0.51806966,107540.0,107530.0,1.86710786]
[1751274306543,0.51806966,107540.0,107530.0,1.99770786]
[1751274307454,0.51806966,107540.0,107530.0,2.03490039]
[1751274307655,0.70400146,107540.0,107530.0,2.03490039]
[1751274308355,0.51806966,107540.0,107530.0,2.03490039]
[1751274308659,0.51806966,107540.0,107530.0,1.8489164]
[1751274309359,0.51806966,107540.0,107530.0,1.81172387]
[1751274309657,0.51806966,107540.0,107530.0,1.83033521]
[1751274310752,0.51806966,107540.0,107530.0,1.75595983]
[1751274310953,0.51806966,107540.0,107530.0,1.8117172]
[1751274313358,0.51806966,107540.0,107530.0,1.4005964]
[1751274313563,0.51806966,107540.0,107530.0,1.8117172]
[1751274315861,0.51806966,107540.0,107530.0,1.99770119]
[1751274316062,0.51806966,107540.0,107530.0,1.94194382]
[1751274317454,1.85159178,107560.0,107550.0,0.1859145]
[1751274317660,1.85159178,107560.0,107550.0,1.3171549]
[1751274317864,1.88179178,107560.0,107550.0,1.3171549]
[1751274318359,1.88179178,107560.0,107550.0,1.3482549]
[1751274318666,2.38179178,107560.0,107550.0,1.3482549]
[1751274318871,2.41399178,107560.0,107550.0,1.3482549]
[1751274319670,2.35837891,107560.0,107550.0,1.3482549]
[1751274319968,0.51711651,107560.0,107550.0,1.6169153]
[1751274321357,0.5,107560.0,107550.0,1.6169153]
[1751274321566,0.5,107560.0,107550.0,1.69279123]
[1751274321868,0.45681393,107560.0,107550.0,1.83268493]
[1751274322060,0.24147137,107570.0,107560.0,0.1858972]
[1751274322262,0.24147137,107570.0,107560.0,0.692518]
[1751274322467,0.19500137,107570.0,107560.0,1.053318]
[1751274322870,0.1858886,107570.0,107560.0,1.053318]
[1751274323468,0.6858886,107570.0,107560.0,1.053318]
[1751274324171,0.6868886,107570.0,107560.0,1.054318]
[1751274325774,0.501,107570.0,107560.0,1.054318]
[1751274325977,0.501,107570.0,107560.0,1.06950177]
[1751274329277,0.501,107570.0,107560.0,1.10660328]
[1751274330178,0.001,107570.0,107560.0,1.10660328]
[1751274340684,0.001,107570.0,107560.0,1.16225554]
[1751274348088,0.001,107570.0,107560.0,1.12515403]
[1751274354989,0.001,107570.0,107560.0,0.76435403]
[1751274355287,0.001,107570.0,107560.0,1.14370479]
[1751274369108,0.001,107570.0,107560.0,1.83866479]
[1751274374517,0.56347483,107590.0,107580.0,0.1858627]
[1751274374818,0.56347483,107590.0,107580.0,1.1615035]
[1751274375016,1.09657483,107590.0,107580.0,1.2919435]
[1751274375216,0.73577483,107590.0,107580.0,1.6527435]
[1751274375418,0.73577483,107590.0,107580.0,1.68993463]
[1751274375910,0.74077483,107590.0,107580.0,1.69093463]
[1751274376115,0.74077483,107590.0,107580.0,1.72173463]
[1751274377116,0.74077483,107590.0,107580.0,1.36093463]
[1751274377416,0.74077483,107590.0,107580.0,1.72173463]
[1751274380721,0.55492943,107590.0,107580.0,1.72173463]
[1751274381120,0.55492943,107590.0,107580.0,1.78333463]
[1751274381309,0.55492943,107590.0,107580.0,1.84818423]
[1751274382614,0.52182943,107590.0,107580.0,1.84818423]
[1751274384823,0.52182943,107590.0,107580.0,1.83912132]
[1751274385521,0.55422943,107590.0,107580.0,1.83912132]
[1751274388225,0.74007493,107590.0,107580.0,1.83912132]
[1751274394023,0.94563533,107590.0,107580.0,1.05176132]
[1751274394219,0.80277493,107590.0,107580.0,1.38568132]
[1751274395727,0.80277493,107590.0,107580.0,0.69096132]
[1751274396128,0.80277493,107590.0,107580.0,1.25532132]
[1751274400324,0.80277493,107590.0,107580.0,1.61612132]
[1751274400525,0.80277493,107590.0,107580.0,1.64852132]
[1751274401928,0.80277493,107590.0,107580.0,1.68062132]
[1751274402126,0.70767493,107590.0,107580.0,1.71322132]
[1751274403934,0.70767493,107590.0,107580.0,1.14886132]
[1751274404326,0.70767493,107590.0,107580.0,1.84354132]
[1751274404532,0.70767493,107590.0,107580.0,1.14886132]
[1751274405129,0.70767493,107590.0,107580.0,1.84354132]
[1751274407438,0.70767493,107590.0,107580.0,1.80635019]
[1751274408337,0.52182943,107590.0,107580.0,1.80635019]
[1751274408741,0.70767493,107590.0,107580.0,1.80635019]
[1751274410040,0.52182943,107590.0,107580.0,1.80635019]
[1751274410439,0.70767493,107590.0,107580.0,1.80635019]
[1751274413241,0.70767493,107590.0,107580.0,1.44555019]
[1751274413442,0.70767493,107590.0,107580.0,1.80635019]
[1751274422748,0.70767493,107590.0,107580.0,1.80635019]
[1751274423646,0.52182943,107590.0,107580.0,1.80635019]
[1751274424246,0.52182943,107590.0,107580.0,2.01191059]
[1751274424545,0.52182943,107590.0,107580.0,2.3169239]
[1751274424947,0.52182943,107590.0,107580.0,2.39112692]
[1751274425548,0.505,107590.0,107580.0,2.39112692]
[1751274426049,0.005,107590.0,107580.0,2.39112692]
[1751274428853,0.005,107590.0,107580.0,2.68712692]
[1751274429250,0.005,107590.0,107580.0,2.6129239]
[1751274429453,0.005,107590.0,107580.0,2.66865732]
[1751274430452,0.001,107600.0,107590.0,0.1858455]
[1751274430652,0.001,107600.0,107590.0,1.2997169]
[1751274430852,0.001,107600.0,107590.0,1.3315169]
[1751274432154,0.008,107600.0,107590.0,1.3325169]
[1751274432853,0.008,107600.0,107590.0,1.1269565]
[1751274434153,0.008,107600.0,107590.0,1.3325169]
[1751274434356,0.008,107600.0,107590.0,1.6285169]
[1751274438353,0.008,107600.0,107590.0,1.60983686]
[1751274439655,0.008,107600.0,107590.0,1.40427646]
[1751274439846,0.008,107600.0,107590.0,2.09851646]
[1751274440156,0.008,107600.0,107590.0,2.0429063]
[1751274440354,0.008,107600.0,107590.0,2.07997602]
[1751274440657,0.008,107600.0,107590.0,1.38573602]
[1751274440856,0.008,107600.0,107590.0,2.07997602]
[1751274445357,0.008,107600.0,107590.0,1.40427646]
[1751274445658,0.008,107600.0,107590.0,2.09847646]
[1751274446452,0.008,107600.0,107590.0,2.1171565]
[1751274451859,0.008,107600.0,107590.0,1.4229565]
[1751274452060,0.008,107600.0,107590.0,2.00448573]
[1751274452359,0.008,107600.0,107590.0,2.21004613]
[1751274452567,0.008,107600.0,107590.0,2.30914613]
[1751274452767,0.008,107600.0,107590.0,2.2535067]
[1751274453065,0.008,107600.0,107590.0,2.0479463]
[1751274458378,0.008,107600.0,107590.0,2.1222365]
[1751274460770,0.008,107600.0,107590.0,2.3277969]
[1751274461470,0.008,107600.0,107590.0,2.6885969]
[1751274461871,0.008,107600.0,107590.0,2.6143067]
[1751274463062,0.008,107600.0,107590.0,1.8927067]
[1751274463369,0.008,107600.0,107590.0,2.6143067]
[1751274463569,0.008,107600.0,107590.0,1.8927067]
[1751274463771,0.008,107600.0,107590.0,2.68865509]
[1751274463965,0.008,107600.0,107590.0,1.96705509]
[1751274464168,0.008,107600.0,107590.0,2.68865509]
[1751274464571,0.008,107600.0,107590.0,2.6143067]
[1751274465370,0.008,107600.0,107590.0,2.4087463]
[1751274468071,0.008,107600.0,107590.0,2.6143067]
[1751274470070,0.008,107600.0,107590.0,2.4087463]
[1751274470674,0.004,107600.0,107590.0,2.4077463]
[1751274471173,0.004,107600.0,107590.0,2.6133067]
[1751274471579,0.004,107600.0,107590.0,2.68766113]
[1751274473178,0.004,107600.0,107590.0,2.48210073]
[1751274479184,0.004,107600.0,107590.0,2.68766113]
[1751274479686,0.002,107600.0,107590.0,2.68766113]
[1751274480206,0.002,107600.0,107590.0,2.6133067]
[1751274482492,0.002,107600.0,107590.0,2.70606047]
[1751274484197,0.002,107600.0,107590.0,1.98446047]
[1751274484399,0.002,107600.0,107590.0,2.70606047]
[1751274489996,0.002,107600.0,107590.0,2.72134427]
[1751274493104,0.0956,107610.0,107600.0,0.1858282]
[1751274493296,0.64990427,107630.0,107620.0,0.1857937]
[1751274493493,0.0973,107630.0,107620.0,1.76411342]
[1751274493694,0.0973,107630.0,107620.0,1.8198512]
[1751274493995,0.3608,107650.0,107640.0,0.1857592]
[1751274494298,0.0963,107650.0,107640.0,1.90939853]
[1751274494600,0.0963,107650.0,107640.0,1.70383813]
[1751274494903,0.0963,107650.0,107640.0,1.75954263]
[1751274495291,0.0963,107650.0,107640.0,1.70383813]
[1751274495596,0.5963,107650.0,107640.0,1.70383813]
[1751274496194,0.7820419,107650.0,107640.0,1.70383813]
[1751274496395,0.5963,107650.0,107640.0,1.29271733]
[1751274496595,0.5963,107650.0,107640.0,1.70383813]
[1751274496997,0.5963,107650.0,107640.0,1.29271733]
[1751274497198,0.5963,107650.0,107640.0,1.77864437]
[1751274497505,0.6043,107650.0,107640.0,1.77964437]
[1751274498094,0.6043,107650.0,107640.0,1.83534887]
[1751274498298,0.6043,107650.0,107640.0,1.77964437]
[1751274498997,0.6043,107650.0,107640.0,1.98520477]
[1751274499298,0.6043,107650.0,107640.0,2.07170927]
[1751274499498,0.6043,107650.0,107640.0,2.40780477]
[1751274499696,0.508,107650.0,107640.0,2.46350927]
[1751274500290,0.508,107650.0,107640.0,2.40780477]
[1751274500791,0.2833248,107660.0,107650.0,0.1857421]
[1751274500996,0.84782517,107660.0,107650.0,0.75185502]
[1751274501196,0.84782517,107660.0,107650.0,0.95741542]
[1751274501497,0.28146477,107660.0,107650.0,0.95741542]
[1751274501693,0.28146477,107660.0,107650.0,1.52377582]
[1751274501895,0.09573997,107660.0,107650.0,1.52377582]
[1751274502103,0.78946477,107660.0,107650.0,1.31921542]
[1751274503292,0.78946477,107660.0,107650.0,0.75409542]
[1751274503497,0.99502517,107660.0,107650.0,1.08921542]
[1751274503800,0.78946477,107660.0,107650.0,1.08873914]
[1751274505101,0.78946477,107660.0,107650.0,0.88365502]
[1751274505303,0.78946477,107660.0,107650.0,1.08873914]
[1751274512906,0.78946477,107660.0,107650.0,0.39281914]
[1751274513109,0.78946477,107660.0,107650.0,1.09081914]
[1751274513406,0.78946477,107660.0,107650.0,1.12231914]
[1751274515803,0.78946487,107660.0,107650.0,1.12231914]
[1751274515997,0.6937249,107660.0,107650.0,1.51481914]
[1751274516202,0.508,107660.0,107650.0,1.54521914]
[1751274518005,0.508,107660.0,107650.0,2.04630326]
[1751274518401,0.508,107660.0,107650.0,2.08343959]
[1751274518599,0.008,107660.0,107650.0,1.87835547]
[1751274519110,0.39172163,107680.0,107670.0,0.1857077]
[1751274519312,0.39172163,107680.0,107670.0,0.95735182]
[1751274519502,0.39172163,107680.0,107670.0,0.95784828]
[1751274520202,0.40272163,107680.0,107670.0,0.95884828]
[1751274521303,0.90272163,107680.0,107670.0,0.95884828]
[1751274522210,0.59207193,107680.0,107670.0,1.6562924]
[1751274522511,0.511,107680.0,107670.0,1.75492873]
[1751274522704,0.511,107680.0,107670.0,1.84203323]
[1751274522705,0.0253123,107680.0,107670.0,1.84203323]
[1751274523111,0.0064677,107680.0,107670.0,2.24213127]
[1751274523307,0.0064677,107680.0,107670.0,2.20499494]
[1751274523611,0.001,107690.0,107680.0,0.20125139]
[1751274523808,0.001,107690.0,107680.0,0.66053988]
[1751274524008,0.001,107690.0,107680.0,1.563944]
[1751274524213,0.001,107690.0,107680.0,1.56444046]
[1751274524716,0.001,107690.0,107680.0,1.62014496]
[1751274524916,0.001,107690.0,107680.0,1.58315647]
[1751274525617,0.001,107690.0,107680.0,1.60177129]
[1751274526119,0.001,107690.0,107680.0,1.73253609]
[1751274526310,0.001,107690.0,107680.0,2.08390395]
[1751274526513,0.001,107690.0,107680.0,2.29158341]
[1751274527113,0.001,107690.0,107680.0,2.21726409]
[1751274527317,0.001,107690.0,107680.0,2.27259696]
[1751274527812,0.098,107720.0,107710.0,0.1856388]
[1751274528010,0.098,107720.0,107710.0,1.45016292]
[1751274528210,0.098,107720.0,107710.0,1.56079447]
[1751274528211,0.001,107720.0,107710.0,1.56079447]
[1751274528518,0.501,107720.0,107710.0,1.56079447]
[1751274529416,0.6866216,107720.0,107710.0,1.35871035]
[1751274529620,0.501,107720.0,107710.0,1.56379447]
[1751274529922,0.501,107720.0,107710.0,1.56579447]
[1751274530214,0.6866216,107720.0,107710.0,1.56579447]
[1751274531023,0.501,107720.0,107710.0,1.64006268]
[1751274532918,0.6866216,107720.0,107710.0,1.64006268]
[1751274533120,0.501,107720.0,107710.0,1.64006268]
[1751274534124,0.501,107720.0,107710.0,1.64055914]
[1751274534426,0.501,107720.0,107710.0,0.94191914]
[1751274534817,0.501,107720.0,107710.0,1.64163914]
[1751274535016,0.5651,107720.0,107710.0,1.64163914]
[1751274535218,0.001,107720.0,107710.0,1.64163914]
[1751274536625,0.001,107720.0,107710.0,1.65086424]
[1751274536924,0.001,107720.0,107710.0,1.64175914]
[1751274537526,0.001,107720.0,107710.0,0.94191914]
[1751274537826,0.001,107720.0,107710.0,1.64187914]
[1751274537827,0.032,107720.0,107710.0,1.64187914]
[1751274538028,0.2176216,107720.0,107710.0,0.91131914]
[1751274538325,0.2482216,107720.0,107710.0,1.57821914]
[1751274538521,0.2482216,107720.0,107710.0,0.87821914]
[1751274538926,0.2482216,107720.0,107710.0,0.67313502]
[1751274539126,0.2482216,107720.0,107710.0,1.57841914]
[1751274539428,0.5626,107720.0,107710.0,1.54741914]
[1751274540427,0.5626,107720.0,107710.0,1.57861914]
[1751274540428,0.532,107720.0,107710.0,1.57861914]
[1751274540613,0.532,107720.0,107710.0,1.61161914]
[1751274544230,0.52235187,107720.0,107710.0,1.61161914]
[1751274546030,0.52235187,107720.0,107710.0,1.40653502]
[1751274546233,0.52235187,107720.0,107710.0,1.61161914]
[1751274546424,0.55365187,107720.0,107710.0,1.61161914]
[1751274546930,0.55365187,107720.0,107710.0,0.91141914]
[1751274547132,0.55365187,107720.0,107710.0,1.61321914]
[1751274547330,0.58555187,107720.0,107710.0,1.61321914]
[1751274549333,0.58555187,107720.0,107710.0,0.91141914]
[1751274549536,0.77117347,107720.0,107710.0,1.54889914]
[1751274552034,0.77117347,107720.0,107710.0,0.84721914]
[1751274552236,0.7498216,107720.0,107710.0,1.54893914]
[1751274552424,0.77128093,107720.0,107710.0,1.54893914]
[1751274554630,0.58565933,107720.0,107710.0,1.54893914]
[1751274554935,0.77128093,107720.0,107710.0,1.54893914]
[1751274555139,0.77128093,107720.0,107710.0,1.34385502]
[1751274555436,0.77128093,107720.0,107710.0,1.54885914]
[1751274558340,0.77128093,107720.0,107710.0,1.60418832]
[1751274559039,0.58565933,107720.0,107710.0,1.60418832]
[1751274559240,0.77128093,107720.0,107710.0,1.60418832]
[1751274561337,0.77128093,107720.0,107710.0,1.54885914]
[1751274561557,0.58565933,107720.0,107710.0,1.54885914]
[1751274561945,0.58565933,107720.0,107710.0,1.57965914]
[1751274562945,0.77128093,107720.0,107710.0,1.57965914]
[1751274563250,0.77128093,107720.0,107710.0,0.87801914]
[1751274563548,0.77128093,107720.0,107710.0,1.54841914]
[1751274565847,0.77128093,107720.0,107710.0,1.34333502]
[1751274566057,0.77128093,107720.0,107710.0,1.54841914]
[1751274567358,0.77128093,107720.0,107710.0,0.84721914]
[1751274567657,0.77128093,107720.0,107710.0,1.60374832]
[1751274570461,0.77128093,107720.0,107710.0,0.90254832]
[1751274570757,0.77128093,107720.0,107710.0,1.60358832]
[1751274574558,0.77128093,107720.0,107710.0,1.63358832]
[1751274575453,0.77128093,107720.0,107710.0,1.61015914]
[1751274575650,0.77128093,107720.0,107710.0,1.64095914]
[1751274576765,0.77128093,107720.0,107710.0,0.93991914]
[1751274576966,0.77128093,107720.0,107710.0,1.64023914]
[1751274579569,0.73938093,107720.0,107710.0,1.64023914]
[1751274579868,0.52245933,107720.0,107710.0,1.8447374]
[1751274580567,0.52245933,107720.0,107710.0,1.1444174]
[1751274580760,0.52245933,107720.0,107710.0,1.8447774]
[1751274581770,0.52245933,107720.0,107710.0,1.63999742]
[1751274583861,0.52245933,107720.0,107710.0,0.93963742]
[1751274584057,0.52245933,107720.0,107710.0,1.63995742]
[1751274584256,0.70808093,107720.0,107710.0,1.63995742]
[1751274584460,0.76998093,107720.0,107710.0,1.63995742]
[1751274586067,0.76998093,107720.0,107710.0,1.60915742]
[1751274586269,0.80108093,107720.0,107710.0,1.60915742]
[1751274591375,0.80108093,107720.0,107710.0,1.6644866]
[1751274591682,0.76998083,107720.0,107710.0,1.60915742]
[1751274591873,0.76998083,107720.0,107710.0,1.64225742]
[1751274595375,0.76998083,107720.0,107710.0,0.90883742]
[1751274595676,0.76998083,107720.0,107710.0,1.60927742]
[1751274595677,0.80248083,107720.0,107710.0,1.60927742]
[1751274596876,0.80248083,107720.0,107710.0,0.90883742]
[1751274597077,0.80248083,107720.0,107710.0,1.60927742]
[1751274599274,0.80248083,107720.0,107710.0,1.60915742]
[1751274599472,0.80248083,107720.0,107710.0,1.40435502]
[1751274599674,0.80248083,107720.0,107710.0,1.60915742]
[1751274600572,0.61685933,107720.0,107710.0,1.64135742]
[1751274600876,0.80248093,107720.0,107710.0,1.64131742]
[1751274603477,0.80248093,107720.0,107710.0,1.6966466]
[1751274603974,0.80248093,107720.0,107710.0,1.9014773]
[1751274605080,0.80248093,107720.0,107710.0,1.2011973]
[1751274605280,0.80248093,107720.0,107710.0,1.9007573]
[1751274606080,0.58435933,107720.0,107710.0,1.9007573]
[1751274606283,0.52245933,107720.0,107710.0,1.9007573]
[1751274610781,0.70808073,107720.0,107710.0,1.63148075]
[1751274610988,0.52245933,107720.0,107710.0,1.63148075]
[1751274611284,0.52245933,107720.0,107710.0,1.8988973]
[1751274611585,0.70808073,107720.0,107710.0,1.8988973]
[1751274612289,0.70808073,107720.0,107710.0,1.4892642]
[1751274612588,0.70808073,107720.0,107710.0,1.8988973]
[1751274612788,0.70808073,107720.0,107710.0,1.69408075]
[1751274614590,0.70808073,107720.0,107710.0,1.8988973]
[1751274618888,0.70808073,107720.0,107710.0,1.69408075]
[1751274619193,0.77028073,107720.0,107710.0,1.69408075]
[1751274620589,0.97509728,107720.0,107710.0,1.49900075]
[1751274620794,1.00829728,107720.0,107710.0,1.63116075]
[1751274621490,0.80348073,107720.0,107710.0,1.63116075]
[1751274622999,0.80348073,107720.0,107710.0,1.63108075]
[1751274624401,0.80348073,107720.0,107710.0,0.93228075]
[1751274624799,0.80348073,107720.0,107710.0,1.63124075]
[1751274628097,0.80348073,107720.0,107710.0,0.93228075]
[1751274628300,0.80348073,107720.0,107710.0,1.63120075]
[1751274628901,0.80348073,107720.0,107710.0,1.4263842]
[1751274629102,0.80348073,107720.0,107710.0,1.63120075]
[1751274630597,0.80348073,107720.0,107710.0,0.93228075]
[1751274630791,0.80348073,107720.0,107710.0,1.63088075]
[1751274631502,0.80348073,107720.0,107710.0,1.57555157]
[1751274632201,0.80348073,107720.0,107710.0,1.57539157]
[1751274633004,0.80348073,107720.0,107710.0,1.21459157]
[1751274633204,0.80348073,107720.0,107710.0,1.57539157]
[1751274634206,0.80348073,107720.0,107710.0,0.87695157]
[1751274634505,0.80348073,107720.0,107710.0,1.57455157]
[1751274636898,0.80348073,107720.0,107710.0,1.57443157]
[1751274637302,0.80348073,107720.0,107710.0,1.57447157]
[1751274641711,0.80348073,107720.0,107710.0,1.62980075]
[1751274641898,0.80348073,107720.0,107710.0,1.8649173]
[1751274642305,0.80348073,107720.0,107710.0,1.8950173]
[1751274642806,0.61785933,107720.0,107710.0,1.8950173]
[1751274643406,0.58465933,107720.0,107710.0,1.8950173]
[1751274643806,0.77028083,107720.0,107710.0,1.8950173]
[1751274648619,0.77028083,107720.0,107710.0,1.87958221]
[1751274650318,0.58465933,107720.0,107710.0,1.87958221]
[1751274651619,0.55455933,107720.0,107710.0,1.87958221]
[1751274654321,0.74018073,107720.0,107710.0,1.87958221]
[1751274658224,0.55455933,107720.0,107710.0,1.87958221]
[1751274659515,0.74018073,107720.0,107710.0,1.87958221]
[1751274660610,0.74018073,107720.0,107710.0,1.87458221]
[1751274664535,0.74018073,107720.0,107710.0,1.87458221]
[1751274666325,0.74018073,107720.0,107710.0,1.51378221]
[1751274666531,0.74018073,107720.0,107710.0,1.87458221]
[1751274669130,0.74018073,107720.0,107710.0,1.17706221]
[1751274669329,0.74018073,107720.0,107710.0,1.87254221]
[1751274670330,0.55455933,107720.0,107710.0,1.87254221]
[1751274671533,0.55455933,107720.0,107710.0,1.81721303]
[1751274675439,0.74018083,107720.0,107710.0,1.81721303]
[1751274675938,0.55455933,107720.0,107710.0,1.81721303]
[1751274679542,0.52245933,107720.0,107710.0,1.87254221]
[1751274679744,0.52245933,107720.0,107710.0,1.81721303]
[1751274680442,0.52245933,107720.0,107710.0,1.87254221]
[1751274681542,0.501,107720.0,107710.0,1.81721303]
[1751274683147,0.501,107720.0,107710.0,1.87276369]
[1751274687650,0.001,107720.0,107710.0,1.87276369]
[1751274689151,0.001,107720.0,107710.0,1.46313059]
[1751274689349,0.001,107720.0,107710.0,1.87276369]
[1751274692257,0.001,107720.0,107710.0,2.16876369]
[1751274692757,0.001,107720.0,107710.0,2.11321303]
[1751274695366,0.001,107720.0,107710.0,2.16875172]
[1751274695662,0.02236829,107720.0,107710.0,2.16875172]
[1751274705268,0.001,107720.0,107710.0,2.16875172]
[1751274706462,0.001,107720.0,107710.0,2.11321303]
[1751274708271,0.02238329,107720.0,107710.0,2.11321303]
[1751274708569,0.001,107720.0,107710.0,2.11321303]
[1751274709273,0.02238709,107720.0,107710.0,2.18753235]
[1751274713073,0.02238709,107720.0,107710.0,1.82673235]
[1751274713373,0.001,107720.0,107710.0,2.18753235]
[1751274715469,0.0223909,107720.0,107710.0,2.168787]
[1751274716974,0.1523909,107720.0,107710.0,2.168787]
[1751274717373,0.131,107720.0,107710.0,2.3923489]
[1751274717573,0.131,107720.0,107710.0,2.18753235]
[1751274720574,0.131,107720.0,107710.0,1.49205235]
[1751274720775,0.131,107720.0,107710.0,2.18785235]
[1751274721275,0.131,107720.0,107710.0,1.49205235]
[1751274721474,0.15239217,107720.0,107710.0,1.16451529]
[1751274721671,0.21619217,107720.0,107710.0,2.10900839]
[1751274721874,0.24629217,107720.0,107710.0,2.07900839]
[1751274722475,0.74629217,107720.0,107710.0,2.07900839]
[1751274722776,0.74629217,107720.0,107710.0,1.66937529]
[1751274722978,0.74629217,107720.0,107710.0,2.07900839]
[1751274724879,0.74629217,107720.0,107710.0,1.38288839]
[1751274725080,0.74629217,107720.0,107710.0,2.07932839]
[1751274725878,0.74629217,107720.0,107710.0,2.07936839]
[1751274727177,0.74629217,107720.0,107710.0,1.38288839]
[1751274727374,0.74629217,107720.0,107710.0,2.0947822]
[1751274727576,0.74629217,107720.0,107710.0,1.7987822]
[1751274729680,0.61629217,107720.0,107710.0,1.7987822]
[1751274730782,0.61629217,107720.0,107710.0,1.79904723]
[1751274731480,0.5949,107720.0,107710.0,1.84781119]
[1751274731675,0.5949,107720.0,107710.0,1.88111119]
[1751274731880,0.5332,107720.0,107710.0,1.91431119]
[1751274733886,0.501,107720.0,107710.0,1.91431119]
[1751274734585,0.001,107720.0,107710.0,1.91431119]
[1751274739488,0.001,107720.0,107710.0,2.21031119]
[1751274752997,0.02249391,107720.0,107710.0,2.19156966]
[1751274756199,0.02249391,107720.0,107710.0,2.19112183]
[1751274759098,0.02249391,107720.0,107710.0,2.19004183]
[1751274759898,0.02249391,107720.0,107710.0,2.17493082]
[1751274762904,0.001,107720.0,107710.0,2.19367235]
[1751274768808,0.001,107720.0,107710.0,2.08611303]
[1751274769015,0.02249856,107720.0,107710.0,1.81241281]
[1751274769204,0.11559856,107720.0,107710.0,1.81241281]
[1751274769405,0.61559856,107720.0,107710.0,1.40277971]
[1751274769607,0.61559856,107720.0,107710.0,1.81241281]
[1751274771209,0.61559856,107720.0,107710.0,1.11693281]
[1751274771412,0.61559856,107720.0,107710.0,1.81241281]